Cogmind - Beta 13 @@@ ROGUE MODE // 2024.07.29 @ 16:31:36 Player: ZergFTW Result: Destroyed self with Light Ion Engine chain reaction Performance ------------- Evolutions (0) 0 Regions Visited (1) 200 Robots Destroyed (30) 150 Value Destroyed (596) 596 Prototype IDs (2) 40 Alien Tech Used (0) 0 Bonus (0) 0 TOTAL SCORE: 986 Bonus ------- None Cogmind --------- Core Integrity 0/250 Matter 290/300 Energy 50/100 System Corruption 0% Temperature Hot (257) Movement Core (800) Ox15 Location -10/Materials Parts ------- > --- POWER (1) -------- (None) > --- PROPULSION (2) --- (None) > --- UTILITY (2) ------ High-capacity Storage Unit Sensor Array > --- WEAPON (2) ------- EM Pulse Gun Beam Cannon > --- INVENTORY (20) --- Ion Engine Light Ion Engine Light Treads Light Treads Light Treads Huge Storage Unit High-capacity Matter Pod (200) High-capacity Matter Pod (200) Structural Scanner Structural Scanner Light Armor Plating Medium Laser Particle Gun Light Cannon Grenade Launcher Grenade Launcher Grenade Launcher Grenade Launcher Mining Laser Peak State ------------ > --- POWER ------------ Ion Engine > --- PROPULSION ------- Light Treads Light Treads > --- UTILITY ---------- High-capacity Storage Unit Light Armor Plating > --- WEAPON ----------- Assault Rifle Mining Laser > --- INVENTORY -------- Ion Engine Ion Engine Light Ion Engine Light Ion Engine Light Ion Engine Light Treads Light Treads Light Treads Huge Storage Unit High-capacity Matter Pod High-capacity Matter Pod Structural Scanner Structural Scanner Sensor Array EM Pulse Gun Medium Laser Particle Gun Light Assault Rifle Light Assault Rifle [Rating: 9] Favorites ----------- Power Ion Engine Engine Ion Engine Propulsion Light Treads Treads Light Treads Utility High-capacity Storage Unit Device Sensor Array Storage High-capacity Storage Unit Protection Light Armor Plating Weapon Assault Rifle Energy Gun Medium Laser Energy Cannon Beam Cannon Ballistic Gun Assault Rifle Special Weapon Mining Laser Build | -11 -10 ------- Run | Yrd Mat Slots Evolved . | . . Power . | . . Propulsion . | . . Utility . | . . Weapon . | . . Parts Attached 21 | 6 15 Power 2 | 1 1 Engine 2 | 1 1 Core . | . . Reactor . | . . Propulsion 4 | 2 2 Treads 4 | 2 2 Leg . | . . Wheel . | . . Hover . | . . Flight . | . . Utility 6 | 1 5 Device 2 | . 2 Storage 3 | 1 2 Processor . | . . Hackware . | . . Protection 1 | . 1 Artifact . | . . Weapon 9 | 2 7 Energy Gun 4 | 1 3 Energy Cannon 2 | . 2 Ballistic Gun 1 | 1 . Ballistic Cannon . | . . Launcher . | . . Special Weapon 2 | . 2 Impact Weapon . | . . Slashing Weapon . | . . Piercing Weapon . | . . Special Melee Weapon . | . . Unidentified Prototypes . | . . Parts Lost 4 | . 4 Power 1 | . 1 Propulsion 2 | . 2 Utility . | . . Weapon 1 | . 1 Highest Loss Streak 3 | . 3 To Critical Strikes . | . . Average Slot Usage (%) 99 | . 99 Engine 14 | . 14 Treads 27 | . 27 Device 4 | . 4 Storage 14 | . 14 Protection 8 | . 8 Energy Gun 11 | . 11 Energy Cannon 3 | . 3 Ballistic Gun 10 | . 10 Special Weapon 2 | . 2 Naked Turns . | . . Heaviest Build 94 | 14 94 Greatest Support 40 | 40 40 Greatest Overweight (x) 2 | . 2 Average Overweight (x) 1 | . 1 Largest Inventory Capacity 25 | 8 25 Average Capacity 20 | 6 20 Most Carried 20 | 2 20 Average Carried 13 | 1 13 Final Capacity 20 | 8 20 Final Carried 19 | 2 19 Class Distribution -------------------- 100% | Mutant Dominant Class ---------------- Mutant | -10/Materials Resources | -11 -10 ----------- Run | Yrd Mat Matter Collected 1033 | 230 803 Remotely . | . . Salvage Created 861 | . 861 Parts 65 | . 65 Haulers Intercepted 2 | . 2 Recyclers Shooed . | . . Parts Field Recycled . | . . Retrieved Matter . | . . Parts Self-Destructed . | . . Prevented . | . . Kills | -11 -10 ------- Run | Yrd Mat Combat Hostiles Destroyed 20 | . 20 Guns 17 | . 17 Cannons 2 | . 2 AOE 1 | . 1 Classes Destroyed 7 | . 7 Worker 1 | . 1 Builder 3 | . 3 Tunneler 1 | . 1 Hauler 2 | . 2 Watcher 3 | . 3 Swarmer 8 | . 8 Grunt 12 | . 12 Best Kill Streak 4 | . 4 Combat Bots Only 3 | . 3 Max Kills in Single Turn 2 | . 2 Gunslinging . | . . Exploded 1 | . 1 Melee . | . . Uniques/NPCs Destroyed . | . . Combat | -11 -10 -------- Run | Yrd Mat Hostile Shots Fired 126 | . 126 Missed 27 | . 27 Damage Taken 1004 | . 1004 Core 272 | . 272 Absorbed by Shields . | . . Core Remaining (%) 100 | 100 . Volleys Fired 73 | . 73 Largest 2 | . 2 Hottest 160 | . 160 Shots Fired 140 | . 140 Gun 114 | . 114 Cannon 15 | . 15 Launcher . | . . Special 11 | . 11 Kinetic 57 | . 57 Thermal 82 | . 82 Explosive . | . . Electromagnetic 1 | . 1 Robot Hit Streak 8 | . 8 Robot Miss Streak 7 | . 7 Penetration Max . | . . Secondary Targets 1 | . 1 Max Gunslinging Chain 1 | . 1 Shots Hit Robots 78 | . 78 Core Hits 42 | . 42 Critical Kills 1 | . 1 Critical Parts Destroyed . | . . Critical Strikes 5 | . 5 Burn 4 | . 4 Destroy 1 | . 1 Melee Attacks . | . . Impact . | . . Slashing . | . . Piercing . | . . Sneak Attacks . | . . Combat Hostiles . | . . Follow-up Attacks . | . . Damage Inflicted 1159 | . 1159 Guns 902 | . 902 Cannons 143 | . 143 Explosions 66 | . 66 Melee . | . . Ramming . | . . Kinetic 426 | . 426 Thermal 721 | . 721 Explosive . | . . Electromagnetic 12 | . 12 Impact . | . . Slashing . | . . Piercing . | . . Highest Corruption . | . . Average Corruption . | . . Corruption Purged . | . . Corruption Blocked . | . . Overload Shots . | . . Overflow Damage 4 | . 4 Projectiles 4 | . 4 Explosions . | . . Melee . | . . Knockbacks . | . . Impact . | . . Kinetic . | . . Secondary . | . . Self-Inflicted Damage 32 | . 32 Shots 1 | . 1 Rammed . | . . Targets Rammed . | . . Kicked . | . . Crushed . | . . Highest Temperature 304 | . 304 Average Temperature 62 | . 62 Received Heat Transfer 228 | . 228 Siege Activations . | . . Robots Corrupted . | . . Combat Hostiles . | . . Parts Fried . | . . Impact Corruptions . | . . Robots Melted . | . . Combat Hostiles . | . . Parts Melted 5 | . 5 Heat Transferred 2111 | . 2111 Parts Sabotaged . | . . Parts Stolen . | . . Parts Stripped . | . . Power Chain Reactions 1 | . 1 Alert | -11 -10 ------- Run | Yrd Mat Peak Influence 249 | . 249 Initial . | . . Average 94 | . 97 Maximum Alert Level 1 | . 1 Low Security (%) 94 | 100 94 Level 1 5 | . 5 Level 2 . | . . Level 3 . | . . Level 4 . | . . Level 5 . | . . High Security . | . . Max Security . | . . Squads Dispatched 5 | . 5 Investigation 5 | . 5 Extermination . | . . Reinforcement . | . . Assault . | . . Garrison . | . . Intercept . | . . Searches Triggered . | . . Construction Impeded . | . . Haulers Reinforced . | . . Active Scanning Responses . | . . Cargo Convoy Interrupts . | . . Stealth | -11 -10 --------- Run | Yrd Mat Distress Signals 3 | . 3 Communications Jammed . | . . Distress Signals . | . . Times Spotted 33 | . 33 Peak Tracking Total 6 | . 6 Tactical Retreats 2 | . 2 Traps | -11 -10 ------- Run | Yrd Mat Traps Triggered 4 | . 4 Indirectly . | . . Trap Hack Attempts . | . . Triggered . | . . Disarmed . | . . Reprogrammed . | . . Reused . | . . Traps Extracted . | . . Installed . | . . Triggered . | . . Machines | -11 -10 ---------- Run | Yrd Mat Machines Disabled 2 | . 2 Max in Single Turn 1 | . 1 Machines Repaired . | . . Machines Dismantled . | . . Machines Sabotaged . | . . Overloaded Fab Kills . | . . Hacking | -11 -10 --------- Run | Yrd Mat Machines Accessed 7 | . 7 Terminals 5 | . 5 Fabricators . | . . Repair Stations . | . . Recycling Units 2 | . 2 Scanalyzers . | . . Garrison Access . | . . Total Hacks 24 | . 24 Successful 10 | . 10 Failed 14 | . 14 Catastrophic 1 | . 1 Database Lockouts . | . . Manual 8 | . 8 Terminals 19 | . 19 Fabricators . | . . Repair Stations . | . . Recycling Units 5 | . 5 Scanalyzers . | . . Garrison Access . | . . Terminal Hacks 4 | . 4 Robot Analysis 1 | . 1 Prototype ID Bank 1 | . 1 Locate Traps 1 | . 1 Registered Components 1 | . 1 Fabricator Hacks . | . . Repair Station Hacks . | . . Recycling Unit Hacks 2 | . 2 Retrieve Components 2 | . 2 Scanalyzer . | . . Garrison Access Hacks . | . . Unauthorized Hacks 4 | . 4 Terminals 3 | . 3 Botnet 3 | . 3 Fabricators . | . . Repair Stations . | . . Recycling Units 1 | . 1 Tunnel 1 | . 1 Scanalyzers . | . . Garrison Access . | . . Data Cores Recovered . | . . Used . | . . Hacking Detections 6 | . 6 Full Trace Events 2 | . 2 Feedback Events . | . . Feedback Blocked . | . . Robot Schematics Acquired . | . . Robots Built . | . . Authchips . | . . Time . | . . Total Robot Build Rating . | . . Part Schematics Acquired . | . . Parts Built . | . . Authchips . | . . Time . | . . Total Part Build Rating . | . . Parts Repaired . | . . Time . | . . Parts Recycled . | . . Recycled Matter . | . . Retrieved Matter . | . . Retrieved Components 19 | . 19 Parts Scanalyzed . | . . Part Schematics Acquired . | . . Parts Damaged . | . . Bothacking | -11 -10 ------------ Run | Yrd Mat Used RIF Installer . | . . Robots Hacked . | . . Non-combat . | . . Combat . | . . Robot Hacks Applied . | . . Relay Couplers Released . | . . Fabnet Peak Effective % . | . . Robots Rewired . | . . Allies Hacked . | . . Hacks Repelled . | . . Allies | -11 -10 -------- Run | Yrd Mat Total Allies . | . . Largest Group . | . . Highest-Rated Group . | . . Highest-Rated Ally . | . . Total Orders . | . . Ally Attacks . | . . Total Damage . | . . Kills . | . . Allies Corrupted . | . . Allies Melted . | . . Intel | -11 -10 ------- Run | Yrd Mat Robot Analysis Total 1 | . 1 Derelict Logs Recovered . | . . Drone Launches . | . . Drone Recoveries . | . . Exploration | -11 -10 ------------- Run | Yrd Mat Turns Passed 2116 | 68 2048 Spaces Moved 718 | 38 680 Core 2 | 2 . Treads 716 | 36 680 Legs . | . . Wheels . | . . Hover . | . . Flight . | . . Fastest Speed 50 | 50 160 Average Speed 240 | 154 245 Slowest Speed 320 | 160 320 Overloaded Moves . | . . Propulsion Burnouts . | . . Robots Hopped . | . . Cave-ins Triggered . | . . Exploration Rate (%) 35 | 3 68 Regions Visited 1 Branch Regions . Pre-discovered Areas 1 | . 1 Known Exits Taken . | . . Unknown Exits Taken 1 | 1 . Scrap Searched . | . . Spaces Dug 5 | . 5 Terrain Destroyed 11 | . 11 Melee . | . . Projectile 8 | . 8 AOE 3 | . 3 Terrain Rammed . | . . Walls Destroyed . | . . Machines Disabled . | . . Actions | -11 -10 --------- Run | Yrd Mat Total 944 | 45 899 Wait 97 | . 97 Move 717 | 37 680 Hop . | . . Pick Up 26 | 2 24 Fast Attach 11 | 6 5 Attach 1 | . 1 Detach . | . . Swap 9 | . 9 Drop 10 | . 10 Fire 73 | . 73 Melee . | . . Ram . | . . Kick . | . . Crush . | . . Escape Stasis . | . . Rewire . | . . Trap . | . . Miscellaneous . | . . Route ------- -11/Scrapyard -10/Materials (discovered 5 exits: [*Mat x2] / [*Min x2] / [*Sub]) History --------- Turn | Location | Event 2 | -11/Scrapyard | Met Revision 17 10 | -11/Scrapyard | Discovered new exit (range 15) 69 | -11/Scrapyard | Entered Materials 315 | -10/Materials | Build established: Mutant 385 | -10/Materials | Discovered new exit (range 14) 615 | -10/Materials | Discovered new exit (range 9) 864 | -10/Materials | Discovered new exit (range 16) 910 | -10/Materials | Core integrity fell below 50% 1269 | -10/Materials | Derelicts attacked the area 1888 | -10/Materials | Discovered new exit (range 11) 1959 | -10/Materials | Discovered new exit (range 16) 2100 | -10/Materials | Core integrity fell below 20% 2117 | -10/Materials | Destroyed self with Light Ion Engine chain reaction Last Messages --------------- 01958_ U-05 Engineer builds a Wall. 01959_ EXIT=FOUND 01964_ U-05 Engineer lays Concrete. 01965_ U-05 Engineer builds a Wall. 01978_ Triggered Blade Trap. 01978_ Massive razor-sharp blades shoot up from within the floor. 01978_ Beam Cannon severed. 01978_ Lgt. Treads severed. 01980_ Acquired Beam Cannon. 01985_ Acquired Lgt. Treads. 02037_ Acquired 20 matter. 02090_ Hadron Collector disabled. 02095_ Lgt. Ion Engine melted. 02095_ S-10 Pest destroyed. 02095_ U-05 Engineer builds a Wall. 02105_ Destroyed Flight Unit. 02111_ Lgt. Treads destroyed. 02114_ Ion Engine destroyed. 02117_ Chain reaction triggered in Lgt. Ion Engine. 02117_ S-10 Pest destroyed. Map ----- +----------------------------------------------------+ | | | | | | | | | | | | | | | | | | | | | ?????????????????????????????????????????????????? | | ?????????????????????????????????????????????????? | | ?????????????????????????????????????????????????? | | ??????????????????????????????????##????#????????? | | ???????????????????????????##########????????????? | | ????????###################### ?"#????????????? | | ????????# ^ "#????????????? | | ????????# < < #??#??????#?#?? | | ????????# #?????????????? | | ????????##################+### #???????????#?? | | ????????????????????### ##% ##??#????#???#?? | | ????????????????????# ; """ ##= #<############## | | ????????????????????### """==## # ## | | ??????????????????????# "" %[## # ## ! | | ??????????????????????# "" s ## # ## ! | | ??????????????????????# @= ## %# ## | | ??????????????????????###;;;### =# ## | | ?????????????????????????## #?# # ## [ | | ?????????????##+############### *%# ## | | ????????????? &|# [ ?# = | | ?????????????! =*%###+########+### | | ????????????? *%= =%& * % % %% | | ????????????? ! | | ?*??????????? "" = """ % | | ????????????? "" """" ####### | | ?????????? """ " % #??# | | ?????????? #####%#### | | ?????????? * % #???# ##"" | | ??????????????##+#######!= ###+###+###?# ##"" | | ????????????????????# "" ## ###%##"T | | ????????????????????##### ## = #?# ##"" | | ????????????????????????# ## #?# ##"" | | ????????????????????????# ## #?#%#### | | ?????????????????????#### ## """ #?# #??# | | ?????????????????????#" # """ #?#%#?##"## | | ?????????????????????#"" # """ "T" #?# #?# | | ?????????????????????#!! * # #?#%#?# | | ?????????????????????#"" !